Cogmind - Beta 17.1 @@@ ROGUE MODE // 2026.09.15 @ 00:38:24 Player: Err. String Expected Got Nil Result: Destroyed by P-60 Hacker with Shock Rifle Performance ------------- Evolutions (2) 1000 Regions Visited (8) 1600 Robots Destroyed (103) 515 Value Destroyed (3459) 3459 Prototype IDs (41) 820 Alien Tech Used (0) 0 Bonus (1849) 1849 TOTAL SCORE: 9243 Bonus ------- High Alert Combat Kills 149 Entered Garrisons 400 Used RIF Installer 1000 Aligned with FarCom 300 Cogmind --------- Core Integrity 0/550 Matter 198/300 Energy 290/290 System Corruption 9% Temperature Cool (0) Movement Walking (107) Location -8/Garrison Parts ------- > --- POWER (1) -------- Reinforced Deuterium Engine > --- PROPULSION (4) --- Aluminum Leg Carbon-fiber Leg Carbon-fiber Leg Titanium Leg > --- UTILITY (4) ------ Large Storage Unit Hardened Light Armor Plating Improved Light Armor Plating Relay Coupler [Sentry] (32) > --- WEAPON (2) ------- Enhanced Autogun Gauss Rifle > --- INVENTORY (15) --- Light Nuclear Core Carbon-fiber Leg Carbon-fiber Leg High-capacity Matter Pod (200) Relay Coupler [NC] (26) Relay Coupler [Swarmer] (33) Relay Coupler [Swarmer] (41) Relay Coupler [Hunter] (23) PSU Rigger Precision Beam Rifle Gauss Rifle Missile Launcher Remote Datajack Heavy Hammer Peak State ------------ > --- POWER ------------ Reinforced Deuterium Engine > --- PROPULSION ------- Improved Aluminum Leg Carbon-fiber Leg Carbon-fiber Leg Titanium Leg > --- UTILITY ---------- Improved Heat Sink Large Storage Unit Improved Light Armor Plating Relay Coupler [Sentry] > --- WEAPON ----------- Enhanced Autogun Remote Datajack > --- INVENTORY -------- Light Nuclear Core Carbon-fiber Leg Titanium Leg High-capacity Matter Pod Hardened Light Armor Plating Relay Coupler [Swarmer] Relay Coupler [Swarmer] Relay Coupler [Grunt] Relay Coupler [Sentry] PSU Rigger Precision Beam Rifle Gauss Rifle Gauss Rifle Missile Launcher Heavy Hammer [Rating: 39] Favorites ----------- Power Ion Engine Engine Ion Engine Power Core Light Nuclear Core Propulsion Light Treads Treads Light Treads Leg Titanium Leg Utility Large Storage Unit Device Improved Heat Sink Storage Large Storage Unit Hackware Hacking Suite Protection Improved Light Armor Plating Weapon Enhanced Autogun Energy Gun Particle Gun Ballistic Gun Enhanced Autogun Launcher Missile Launcher Special Weapon Remote Datajack Impact Weapon Heavy Hammer Special Melee Weapon Improved Datajack Build | -11 -10 -10 -10 -9 -8 -8 -8 -8 ------- Run | Yrd Mat Min Exi Min Mat Gar Mat Gar Slots Evolved 4 | . . . . . 4 . . . Power . | . . . . . . . . . Propulsion 2 | . . . . . 2 . . . Utility 2 | . . . . . 2 . . . Weapon . | . . . . . . . . . Parts Attached 77 | 3 4 4 1 1 29 12 12 11 Power 5 | . . . . 1 1 1 2 . Engine 3 | . . . . 1 1 . 1 . Core 2 | . . . . . . 1 1 . Reactor . | . . . . . . . . . Propulsion 30 | 2 . 3 . . 10 7 3 5 Treads 15 | 2 . 3 . . 10 . . . Leg 15 | . . . . . . 7 3 5 Wheel . | . . . . . . . . . Hover . | . . . . . . . . . Flight . | . . . . . . . . . Utility 21 | 1 . 1 1 . 7 3 3 5 Device 6 | 1 . 1 . . 2 1 . 1 Storage 3 | . . . 1 . 1 . 1 . Processor . | . . . . . . . . . Hackware 7 | . . . . . 2 1 1 3 Protection 5 | . . . . . 2 1 1 1 Artifact . | . . . . . . . . . Weapon 21 | . 4 . . . 11 1 4 1 Energy Gun 5 | . 1 . . . 2 . 2 . Energy Cannon . | . . . . . . . . . Ballistic Gun 11 | . 1 . . . 8 1 1 . Ballistic Cannon . | . . . . . . . . . Launcher 2 | . 1 . . . 1 . . . Special Weapon 1 | . . . . . . . . 1 Impact Weapon 1 | . 1 . . . . . . . Slashing Weapon . | . . . . . . . . . Piercing Weapon . | . . . . . . . . . Special Melee Weapon 1 | . . . . . . . 1 . Unidentified Prototypes 8 | . . 1 . . 4 . 3 . Parts Lost 13 | . . . . 1 3 6 . 3 Power 2 | . . . . . 1 1 . . Propulsion 4 | . . . . . . 2 . 2 Utility 5 | . . . . 1 1 2 . 1 Weapon 2 | . . . . . 1 1 . . Highest Loss Streak 3 | . . . . 1 1 3 . 3 To Critical Strikes . | . . . . . . . . . Average Backups 12 | 3 7 8 8 8 13 14 14 14 Power . | 1 1 1 1 1 1 . . 1 Propulsion 3 | 2 2 2 2 2 4 4 3 2 Utility 2 | . . . . 1 1 4 6 6 Weapon 4 | . 4 5 4 4 5 4 4 4 Tool/Special . | . . . . . . . . . Unused Backups 32 | 7 1 . 1 . 5 2 3 13 Power 5 | 1 . . . . 3 . 1 . Propulsion 6 | 2 1 . . . . 1 . 2 Utility 14 | 1 . . . . . . 2 11 Weapon 7 | 3 . . 1 . 2 1 . . Tool/Special . | . . . . . . . . . Average Slot Usage (%) 95 | . 100 100 100 87 88 92 99 99 Engine 8 | . 14 14 14 14 9 3 3 9 Core 1 | . . . . . . 5 5 . Treads 17 | . 28 28 28 28 32 6 . . Leg 14 | . . . . . . 29 35 35 Device 7 | . 14 14 14 2 1 5 8 4 Storage 10 | . 14 14 14 14 9 9 9 9 Hackware 6 | . . . . . 10 10 9 5 Protection 6 | . . . . . 7 5 9 16 Energy Gun 5 | . 14 14 14 14 3 . 2 1 Ballistic Gun 13 | . 13 14 14 14 13 16 13 13 Peak Build Rating 39 | 7 9 17 9 9 37 35 37 39 Average Rating 24 | 6 8 9 8 8 27 31 35 35 On Entrance 16 | 6 7 9 9 9 8 34 31 37 Avg Prop Armor Cover (%) . | . . . . . . . . . Naked Turns . | . . . . . . . . . Heaviest Build 51 | 15 17 16 21 20 41 41 46 51 Greatest Support 88 | 40 40 40 40 40 88 88 62 64 Greatest Overweight (x) 1 | . . . . . 1 . . 1 Average Overweight (x) . | . . . . . . . . . Largest Inventory Capacity 15 | 8 8 8 10 10 15 15 15 15 Average Capacity 12 | 8 8 8 8 10 14 15 15 15 Most Carried 15 | 6 8 8 8 9 15 15 15 15 Average Carried 12 | 3 7 8 7 8 13 14 14 14 Final Capacity 15 | 8 8 8 10 10 15 15 15 15 Final Carried 15 | 4 8 8 8 9 15 15 15 14 Class Distribution -------------------- 46% | Mutant 27% | Bothacker-Mutant 13% | Hacker-Mutant 12% | Scavenger-Mutant Dominant Class ---------------- Mutant | -10/Materials Mutant | -10/Mines Mutant | -10/Exiles Mutant | -9/Mines Hacker-Mutant | -8/Materials Bothacker-Mutant | -8/Garrison Scavenger-Mutant | -8/Materials Bothacker-Mutant | -8/Garrison Resources | -11 -10 -10 -10 -9 -8 -8 -8 -8 ----------- Run | Yrd Mat Min Exi Min Mat Gar Mat Gar Matter Collected 3928 | 242 155 100 . 51 1148 982 864 386 Remotely . | . . . . . . . . . Salvage Created 3262 | 85 254 144 . 92 1212 637 551 287 Parts 206 | 3 22 12 . 3 79 38 30 19 Haulers Intercepted 11 | . 1 . . . 5 . 5 . Recyclers Shooed 1 | 1 . . . . . . . . Parts Field Recycled . | . . . . . . . . . Retrieved Matter . | . . . . . . . . . Parts Self-Destructed . | . . . . . . . . . Prevented . | . . . . . . . . . Parts Restored . | . . . . . . . . . Kills | -11 -10 -10 -10 -9 -8 -8 -8 -8 ------- Run | Yrd Mat Min Exi Min Mat Gar Mat Gar Combat Hostiles Destroyed 73 | . 9 5 . 2 21 23 7 6 Guns 52 | . 6 5 . 2 14 12 7 6 AOE 21 | . 3 . . . 7 11 . . Classes Destroyed 14 | 2 5 2 . 1 2 1 . 1 Worker 5 | . . 1 . . 4 . . . Builder 1 | . 1 . . . . . . . Tunneler 2 | 1 1 . . . . . . . Hauler 11 | . 1 . . . 5 . 5 . Recycler 4 | 1 . . . . 3 . . . Operator 3 | . 1 . . . 2 . . . Watcher 4 | . . . . . 4 . . . Swarmer 29 | . 6 3 . . 11 7 2 . Cutter 3 | . . . . . . 3 . . Grunt 21 | . 3 . . 1 3 8 5 1 Brawler 1 | . . . . 1 . . . . Sentry 9 | . . 2 . . 5 2 . . Hunter 7 | . . . . . 2 3 . 2 Programmer 3 | . . . . . . . . 3 Best Kill Streak 9 | 2 4 3 . 2 6 9 2 3 Combat Bots Only 9 | . 3 3 . 2 5 9 2 3 Max Kills in Single Turn 4 | 1 4 1 . 1 4 3 1 2 Gunslinging 1 | . . . . . . . . 1 Exploded 3 | . 3 . . . 3 3 . . Melee . | . . . . . . . . . Uniques/NPCs Destroyed . | . . . . . . . . . Combat | -11 -10 -10 -10 -9 -8 -8 -8 -8 -------- Run | Yrd Mat Min Exi Min Mat Gar Mat Gar Hostile Shots Fired 410 | . 18 42 . 13 105 127 19 86 Missed 99 | . 5 9 . 3 27 29 4 22 Hits 311 | . 13 33 . 10 78 98 15 64 Melee 6 | . . . . 3 . 3 . . Projectile 305 | . 13 33 . 7 78 95 15 64 AOE 3 | . . . . . . 3 . . Critical Strikes 8 | . . 1 . 1 1 4 . 1 Damage Taken 4627 | . 163 357 . 154 1104 1544 217 1088 Core 722 | . 29 112 . 20 97 222 18 224 Absorbed by Shields 16 | . . . . . . 16 . . Ignored by Resistances 46 | . . . . . 46 . . . Regen/Repaired (Parts) 278 | . . . . . 124 . 154 . Core Remaining (%) 67 | 100 . . . 35 . . . . Volleys Fired 325 | 4 27 15 . 7 98 90 33 51 Largest 2 | 2 2 2 . 2 2 2 2 2 Hottest 90 | 70 85 85 . 85 90 53 86 86 Shots Fired 593 | 8 50 30 . 14 191 153 66 81 Gun 563 | 8 48 30 . 14 187 140 66 70 Cannon . | . . . . . . . . . Launcher 19 | . 2 . . . 4 13 . . Special 11 | . . . . . . . . 11 Kinetic 473 | 4 25 15 . 7 160 140 65 57 Thermal 90 | 4 23 15 . 7 27 . 1 13 Explosive 19 | . 2 . . . 4 13 . . Electromagnetic . | . . . . . . . . . Robot Hit Streak 21 | 7 5 9 . 7 12 21 12 10 Robot Miss Streak 5 | . 2 3 . 4 5 4 5 2 Penetration Max 1 | . . . . . 1 1 1 . Secondary Targets 7 | . . 3 . . . 3 . 1 Max Gunslinging Chain 1 | . . 1 . . . 1 . 1 Shots Hit Robots 384 | 7 28 21 . 8 119 98 50 53 Core Hits 165 | 3 19 9 . 3 53 48 17 13 Critical Kills 4 | . . . . . 1 . 1 2 Critical Parts Destroyed 2 | . . . . . 1 . . 1 Critical Strikes 11 | 1 . . . . 5 . 1 4 Burn 5 | 1 . . . . 3 . . 1 Destroy 5 | . . . . . 1 . 1 3 Smash 1 | . . . . . 1 . . . Melee Attacks 31 | . 3 . . . 5 8 12 3 Impact 21 | . 3 . . . 5 8 2 3 Slashing . | . . . . . . . . . Piercing . | . . . . . . . . . Sneak Attacks 10 | . 1 . . . 1 . 8 . Combat Hostiles . | . . . . . . . . . Follow-up Attacks . | . . . . . . . . . Damage Inflicted 7705 | 87 608 332 . 102 2718 2257 765 836 Guns 5908 | 87 373 299 . 102 2023 1438 750 836 Cannons . | . . . . . . . . . Explosions 1559 | . 180 . . . 560 819 . . Melee 160 | . 55 . . . 105 . . . Ramming 78 | . . 33 . . 30 . 15 . Kinetic 5001 | 38 175 124 . 58 1753 1438 734 681 Thermal 907 | 49 198 175 . 44 270 . 16 155 Explosive 1559 | . 180 . . . 560 819 . . Electromagnetic . | . . . . . . . . . Impact 160 | . 55 . . . 105 . . . Slashing . | . . . . . . . . . Piercing . | . . . . . . . . . Highest Corruption 9 | . 2 2 2 5 4 4 4 9 Average Corruption 3 | . 2 2 2 4 3 4 4 6 Corruption Purged . | . . . . . . . . . Corruption Blocked . | . . . . . . . . . Effects 93 | . 5 5 4 4 15 19 24 17 Message Errors 23 | . 1 1 . 2 3 5 7 4 Matter Fused 22 | . . 1 1 1 5 3 9 2 Heat Flow Errors 15 | . . 2 1 1 4 3 1 3 Energy Discharges 8 | . . 1 1 . . 2 1 3 Parts Fused 1 | . . . . . . . 1 . Data Loss (minor) 10 | . 3 . . . 1 2 1 3 Data Loss (major) 4 | . 1 . 1 . . . 1 1 Misfires 6 | . . . . . 1 3 1 1 Alerts 1 | . . . . . . . 1 . Weapon Failures 3 | . . . . . 1 1 1 . Overload Shots . | . . . . . . . . . Overflow Damage 198 | . . . . . 198 . . . Projectiles . | . . . . . . . . . Explosions 112 | . . . . . 112 . . . Melee 86 | . . . . . 86 . . . Knockbacks . | . . . . . . . . . Impact . | . . . . . . . . . Kinetic . | . . . . . . . . . Secondary . | . . . . . . . . . Self-Inflicted Damage 137 | . 38 . . . 26 73 . . Shots 4 | . 1 . . . 1 2 . . Rammed 18 | . . 11 . . 7 . . . Targets Rammed 23 | . . 12 . . 7 . 4 . Kicked 4 | . . . . . . . 4 . Crushed 1 | . . 1 . . . . . . Highest Temperature 343 | 36 120 274 188 266 213 170 187 343 Average Temperature 77 | 19 39 110 103 88 45 52 96 158 Received Heat Transfer 1050 | . 27 54 . 42 306 369 117 135 Effects 2 | . . . . . . . . 2 Shutdowns 1 | . . . . . . . . 1 Short Circuit 1 | . . . . . . . . 1 Siege Activations . | . . . . . . . . . Martial Activations . | . . . . . . . . . Shielding Activations . | . . . . . . . . . Robots Disrupted . | . . . . . . . . . Combat Hostiles . | . . . . . . . . . Robots Corrupted 1 | . . . . . 1 . . . Combat Hostiles . | . . . . . . . . . Parts Fried 1 | . . . . . 1 . . . Impact Corruptions 3 | . . . . . 3 . . . Robots Melted . | . . . . . . . . . Combat Hostiles . | . . . . . . . . . Parts Melted 3 | . . . . . 3 . . . Heat Transferred 2516 | 222 481 407 . 111 851 . 37 407 Parts Sabotaged . | . . . . . . . . . Parts Stolen . | . . . . . . . . . Parts Stripped . | . . . . . . . . . Power Chain Reactions . | . . . . . . . . . Alert | -11 -10 -10 -10 -9 -8 -8 -8 -8 ------- Run | Yrd Mat Min Exi Min Mat Gar Mat Gar Maximum Alert Level 3 | . . . . . 1 3 2 . Low Security (%) 64 | 100 100 100 . 100 54 . 66 100 Level 1 23 | . . . . . 45 32 25 . Level 2 6 | . . . . . . 35 7 . Level 3 4 | . . . . . . 31 . . Level 4 . | . . . . . . . . . Level 5 . | . . . . . . . . . High Security . | . . . . . . . . . Max Security . | . . . . . . . . . Peak Influence 911 | 10 97 88 . 50 367 911 443 180 Initial 443 | . . 28 . . 3 220 443 . Average 183 | . 36 16 . 21 156 576 150 128 Influence Increases 2599 | 10 295 116 . 50 794 751 328 255 Destroy 0b10 Robot/C 1460 | . 180 100 . 40 420 460 140 120 Destroy 0b10 Robot/NC 150 | 10 20 5 . . 90 . 25 . Destroy Leader 260 | . 42 10 . 10 128 40 30 . Successful Hack 86 | . 23 . . . 27 14 22 . Disable Machine 210 | . 15 . . . 75 30 75 15 Anti-Garrison Action 200 | . . . . . . 100 . 100 Destroy Structure 173 | . 15 1 . . 39 92 6 20 Lose Combat Pursuer 60 | . . . . . 15 15 30 . Influence Decreases 2484 | 10 221 190 . 40 465 179 1239 140 Entered New Map 640 | . . 46 . . 7 119 468 . Time Decay 1301 | 10 221 144 . 40 435 . 451 . Lost Part 113 | . . . . . 23 60 . 30 Lost Ally 130 | . . . . . . . 20 110 Purge Threat 300 | . . . . . . . 300 . Squads Dispatched 6 | . 2 . . . 1 . 3 . Investigation . | . . . . . . . . . Extermination . | . . . . . . . . . Reinforcement 6 | . 2 . . . 1 . 3 . Assault . | . . . . . . . . . Garrison . | . . . . . . . . . Intercept . | . . . . . . . . . Searches Triggered . | . . . . . . . . . Construction Impeded . | . . . . . . . . . Haulers Reinforced . | . . . . . . . . . Active Scanning Responses . | . . . . . . . . . Cargo Convoy Interrupts . | . . . . . . . . . Stealth | -11 -10 -10 -10 -9 -8 -8 -8 -8 --------- Run | Yrd Mat Min Exi Min Mat Gar Mat Gar Distress Signals 8 | . 2 . . . 2 . 4 . Communications Jammed . | . . . . . . . . . Distress Signals . | . . . . . . . . . Times Spotted 110 | . 17 5 . 2 31 26 14 15 Peak Tracking Total 7 | . 3 3 . 2 6 7 3 5 Tactical Retreats 4 | . . . . . 1 1 2 . Traps | -11 -10 -10 -10 -9 -8 -8 -8 -8 ------- Run | Yrd Mat Min Exi Min Mat Gar Mat Gar Traps Triggered 8 | . 2 . . . 1 3 . 2 Indirectly . | . . . . . . . . . Trap Hack Attempts . | . . . . . . . . . Triggered . | . . . . . . . . . Disarmed . | . . . . . . . . . Reprogrammed . | . . . . . . . . . Reused . | . . . . . . . . . Traps Extracted . | . . . . . . . . . Installed . | . . . . . . . . . Triggered . | . . . . . . . . . Objects Rigged 1 | . . . . . 1 . . . Exploded 1 | . . . . . 1 . . . Machines | -11 -10 -10 -10 -9 -8 -8 -8 -8 ---------- Run | Yrd Mat Min Exi Min Mat Gar Mat Gar Machines Disabled 19 | . 1 . . . 5 4 5 4 Max in Single Turn 2 | . 1 . . . 1 1 2 2 Garrison Relay 4 | . . . . . . 2 . 2 Phase Generator 1 | . . . . . . . . 1 Machines Repaired . | . . . . . . . . . Machines Dismantled . | . . . . . . . . . Machines Sabotaged . | . . . . . . . . . Overloaded Fab Kills . | . . . . . . . . . Hacking | -11 -10 -10 -10 -9 -8 -8 -8 -8 --------- Run | Yrd Mat Min Exi Min Mat Gar Mat Gar Machines Accessed 32 | . 5 . 1 . 12 2 11 1 Terminals 22 | . 5 . . . 8 2 6 1 Fabricators . | . . . . . . . . . Repair Stations 3 | . . . . . 1 . 2 . Recycling Units 1 | . . . . . . . 1 . Scanalyzers 3 | . . . . . 2 . 1 . Garrison Access 2 | . . . . . 1 . 1 . Total Hacks 82 | . 13 . 1 . 36 4 26 2 Successful 54 | . 8 . 1 . 23 1 21 . Failed 27 | . 5 . . . 12 3 5 2 Catastrophic 3 | . 1 . . . 1 . . 1 Database Lockouts 1 | . . . . . 1 . . . Manual 41 | . 11 . 1 . 16 . 13 . Terminals 67 | . 13 . . . 31 4 17 2 Fabricators . | . . . . . . . . . Repair Stations 7 | . . . . . 2 . 5 . Recycling Units 1 | . . . . . . . 1 . Scanalyzers 4 | . . . . . 2 . 2 . Garrison Access 2 | . . . . . 1 . 1 . Terminal Hacks 20 | . 3 . 1 . 11 1 4 . Prototype ID Bank 5 | . 1 . . . 3 . 1 . Branch Access Points 1 | . 1 . . . . . . . Emergency Access Points 2 | . . . . . 1 1 . . Terminal Index 2 | . . . . . 1 . 1 . Garrison Index 1 | . . . . . 1 . . . Unreport Threat 1 | . . . . . . . 1 . Locate Traps 1 | . . . . . 1 . . . Registered Components 3 | . 1 . . . 1 . 1 . Registered Prototypes 1 | . . . . . 1 . . . Zone Layout 2 | . . . . . 2 . . . Proto ID Catalog 1 | . . . 1 . . . . . Fabricator Hacks . | . . . . . . . . . Repair Station Hacks 6 | . . . . . 2 . 4 . Scan Component 3 | . . . . . 1 . 2 . Repair 3 | . . . . . 1 . 2 . Recycling Unit Hacks 1 | . . . . . . . 1 . Retrieve Components 1 | . . . . . . . 1 . Scanalyzer 3 | . . . . . 1 . 2 . Retrieve Study 3 | . . . . . 1 . 2 . Garrison Access Hacks 2 | . . . . . 1 . 1 . Unlock Access 2 | . . . . . 1 . 1 . Unauthorized Hacks 22 | . 5 . . . 8 . 9 . Terminals 21 | . 5 . . . 8 . 8 . Assimilate 1 | . 1 . . . . . . . Botnet 4 | . 1 . . . 1 . 2 . Operators 2 | . 1 . . . 1 . . . Skim 14 | . 2 . . . 6 . 6 . Fabricators . | . . . . . . . . . Repair Stations 1 | . . . . . . . 1 . Mechanics 1 | . . . . . . . 1 . Recycling Units . | . . . . . . . . . Scanalyzers . | . . . . . . . . . Garrison Access . | . . . . . . . . . Data Cores Recovered 1 | . . . . . 1 . . . Used . | . . . . . . . . . Hacking Detections 26 | . 5 . . . 9 2 9 1 Full Trace Events . | . . . . . . . . . Feedback Events . | . . . . . . . . . Feedback Blocked . | . . . . . . . . . Robot Schematics Acquired . | . . . . . . . . . Robots Built . | . . . . . . . . . Authchips . | . . . . . . . . . Time . | . . . . . . . . . Total Robot Build Rating . | . . . . . . . . . Part Schematics Acquired . | . . . . . . . . . Parts Built . | . . . . . . . . . Authchips . | . . . . . . . . . Time . | . . . . . . . . . Total Part Build Rating . | . . . . . . . . . Part Studies Acquired 3 | . . . . . 1 . 2 . Parts Repaired 3 | . . . . . 1 . 2 . Time 102 | . . . . . 26 . 76 . Parts Recycled . | . . . . . . . . . Recycled Matter . | . . . . . . . . . Retrieved Matter . | . . . . . . . . . Retrieved Components 10 | . . . . . . . 10 . Parts Scanalyzed . | . . . . . . . . . Part Schematics Acquired . | . . . . . . . . . Parts Damaged . | . . . . . . . . . Bothacking | -11 -10 -10 -10 -9 -8 -8 -8 -8 ------------ Run | Yrd Mat Min Exi Min Mat Gar Mat Gar Used RIF Installer 2 | . . . . . . 2 . . Hotswap 1 | . . . . . . 1 . . Robots Hacked 8 | . . . . . . . 3 5 Non-combat 1 | . . . . . . . 1 . Combat 7 | . . . . . . . 2 5 Robot Hacks Applied 12 | . . . . . . . 7 5 check_alert 1 | . . . . . . . 1 . purge_threat 1 | . . . . . . . 1 . find_terminals 1 | . . . . . . . 1 . locate_traps 1 | . . . . . . . 1 . find_garrison 1 | . . . . . . . 1 . overwrite_iff 1 | . . . . . . . 1 . formatsys_low 1 | . . . . . . . 1 . formatsys_high 5 | . . . . . . . . 5 Relay Couplers Released 18 | . . . . . . 10 . 8 Machine Destruction 18 | . . . . . . 10 . 8 Attached 5 | . . . . . . 1 1 3 Fabnet Peak Effective % . | . . . . . . . . . Robots Rewired . | . . . . . . . . . Allies Hacked . | . . . . . . . . . Hacks Repelled . | . . . . . . . . . Allies | -11 -10 -10 -10 -9 -8 -8 -8 -8 -------- Run | Yrd Mat Min Exi Min Mat Gar Mat Gar Total Allies 7 | . . . . . . . 2 5 Largest Group 3 | . . . . . . . 2 3 Highest-Rated Group 41 | . . . . . . . 26 41 Highest-Rated Ally 16 | . . . . . . . 16 16 Total Orders 2 | . . . . . . . . 2 STAY 1 | . . . . . . . . 1 FOLLOW 1 | . . . . . . . . 1 Ally Attacks 15 | . . . . . . . 2 13 Total Damage 196 | . . . . . . . 26 170 Kills . | . . . . . . . . . Allies Corrupted 1 | . . . . . . . . 1 Allies Melted 1 | . . . . . . . 1 . Intel | -11 -10 -10 -10 -9 -8 -8 -8 -8 ------- Run | Yrd Mat Min Exi Min Mat Gar Mat Gar Active Infowar (turns) 1813 | 23 703 684 397 6 . . . . Seismic 1813 | 23 703 684 397 6 . . . . Robot Analysis Total . | . . . . . . . . . Derelict Logs Recovered 2 | . . 2 . . . . . . Drone Launches . | . . . . . . . . . Drone Recoveries . | . . . . . . . . . Exploration | -11 -10 -10 -10 -9 -8 -8 -8 -8 ------------- Run | Yrd Mat Min Exi Min Mat Gar Mat Gar Turns Passed 6753 | 57 703 688 397 117 1893 952 1275 671 Spaces Moved 3508 | 24 352 374 247 60 907 504 648 392 Core . | . . . . . . . . . Treads 2037 | 24 352 374 247 60 907 73 . . Legs 1471 | . . . . . . 431 648 392 Wheels . | . . . . . . . . . Hover . | . . . . . . . . . Flight . | . . . . . . . . . Fastest Speed 107 | 160 160 160 160 160 145 117 111 107 Average Speed 138 | 160 160 160 160 160 150 124 112 110 Slowest Speed 240 | 160 160 160 160 160 240 145 121 178 Overloaded Moves . | . . . . . . . . . Propulsion Burnouts . | . . . . . . . . . Robots Hopped . | . . . . . . . . . Potential Cave-ins . | . . . . . . . . . Cave-ins Triggered . | . . . . . . . . . Exploration Rate (%) 49 | 3 55 79 60 22 72 62 55 36 Regions Visited 8 Branch Regions 3 Pre-discovered Areas 5 | . . 1 . . 1 . 3 . Known Exits Taken 3 | . 1 . . . 1 . 1 . Unknown Exits Taken 4 | 1 . 1 1 1 . . . . Scrap Searched 2 | . . 1 . 1 . . . . Spaces Dug 7 | . 1 . . . 2 2 2 . Terrain Destroyed 140 | . 12 . . . 36 75 3 14 Melee 7 | . 1 . . . 2 2 2 . Projectile 5 | . . . . . . 4 1 . AOE 128 | . 11 . . . 34 69 . 14 Terrain Rammed . | . . . . . . . . . Walls Destroyed . | . . . . . . . . . Machines Disabled . | . . . . . . . . . Actions | -11 -10 -10 -10 -9 -8 -8 -8 -8 --------- Run | Yrd Mat Min Exi Min Mat Gar Mat Gar Total 4853 | 35 435 430 250 67 1255 682 1132 567 Wait 691 | 1 41 20 . . 135 34 383 77 Move 3501 | 23 351 373 246 59 907 503 647 392 Hop . | . . . . . . . . . Pick Up 58 | 1 5 . 1 . 22 10 6 13 Fast Attach 36 | 1 1 2 . . 16 4 11 1 Attach 13 | . . . . . 3 4 1 5 Detach 6 | . . . . . 4 . 1 1 Swap 79 | 2 5 3 1 1 24 14 16 13 Drop 82 | 3 2 5 2 . 33 8 18 11 Fire 325 | 4 27 15 . 7 98 90 33 51 Melee 31 | . 3 . . . 5 8 12 3 Ram . | . . . . . . . . . Kick 4 | . . . . . . . 4 . Crush 19 | . . 12 . . 7 . . . Escape Stasis 4 | . . . . . . 4 . . Rewire 3 | . . . . . . 3 . . Trap 1 | . . . . . 1 . . . Miscellaneous . | . . . . . . . . . Route ------- -11/Scrapyard -10/Materials (discovered 5 exits: [*Mat x2] / *Min x2 / [*Sub]) -10/Mines (discovered 3 exits: [*Mat x2] / *Exi) -10/Exiles -9/Mines -8/Materials (discovered 4 exits: *Fac x3 / Gar) -8/Garrison -8/Materials -8/Garrison History --------- Turn | Location | Event 6 | -11/Scrapyard | Discovered new exit (range 3) 58 | -11/Scrapyard | Entered Materials 198 | -10/Materials | Discovered new exit (range 12) 313 | -10/Materials | Discovered new exit (range 15) 316 | -10/Materials | Build established: Mutant 500 | -10/Materials | Discovered new exit (range 6) 515 | -10/Materials | Identified exit to Mines 748 | -10/Materials | Discovered new exit (range 9) 761 | -10/Materials | Entered Mines 763 | -10/Mines | Met a Derelict bent on vengeance 849 | -10/Mines | Found a damaged Exp. Sensor Array with a note attached 853 | -10/Mines | Found Prototype Device 853 | -10/Mines | Identified Exp. Sensor Array 871 | -10/Mines | Learned Materials security intel 873 | -10/Mines | Learned location of Zion (-7) 1104 | -10/Mines | Discovered new exit (range 11) 1179 | -10/Mines | Discovered new exit (range 9) 1238 | -10/Mines | Core integrity fell below 50% 1249 | -10/Mines | Joined a pair of Derelicts in attacking an 0b10 outpost 1400 | -10/Mines | Found a hidden stash of uninstalled traps 1443 | -10/Mines | Deemed a non-threat by the Exiles lab entrance 1443 | -10/Mines | Discovered new exit (range 5) 1449 | -10/Mines | Entered Exiles 1489 | -10/Exiles | Met 8R-AWN 1515 | -10/Exiles | Met EX-HEX 1560 | -10/Exiles | Met EX-BIN 1585 | -10/Exiles | Aligned with FarCom system 1587 | -10/Exiles | Given EX-Vault access code 1625 | -10/Exiles | Opened EX-Vault 1637 | -10/Exiles | Found PSU Rigger 1670 | -10/Exiles | Warned to stay clear of 0b10 Research branches 1723 | -10/Exiles | Met EX-DEC 1824 | -10/Exiles | Discovered new exit (range 12) 1846 | -10/Exiles | Left Exiles lab with PSU Rigger 1846 | -10/Exiles | Entered Mines 1935 | -9/Mines | Discovered new exit (range 15) 1963 | -9/Mines | Entered Materials 1963 | -8/Materials | Evolved 4 slots: Propulsion x2, Utility x2 2401 | -8/Materials | Repaired Lgt. Treads 2896 | -8/Materials | Build established: Hacker-Mutant 2922 | -8/Materials | Discovered new exit (range 11) 3290 | -8/Materials | Identified exit to Factory 3321 | -8/Materials | Learned location of 1 exit from Recycling 3340 | -8/Materials | Learned Storage stockpile data 3366 | -8/Materials | Learned Storage trap positions 3392 | -8/Materials | Learned Factory fabricator intel 3544 | -8/Materials | Discovered exit to Factory (range 15) 3806 | -8/Materials | Central database locked down 3837 | -8/Materials | Build established: Mutant 3856 | -8/Materials | Identified exit to Garrison 3856 | -8/Materials | Entered Garrison 3925 | -8/Garrison | Installed Relay Interface Framework 3978 | -8/Garrison | Triggered checkpoint 4062 | -8/Garrison | Garrison Relay disabled 4159 | -8/Garrison | Triggered checkpoint 4161 | -8/Garrison | Triggered checkpoint 4215 | -8/Garrison | Lost 3 parts (1p2u) 4229 | -8/Garrison | Destroyed 9 combat bots 4244 | -8/Garrison | Triggered checkpoint 4367 | -8/Garrison | Build established: Bothacker-Mutant 4503 | -8/Garrison | Core integrity fell below 50% 4624 | -8/Garrison | Triggered checkpoint 4666 | -8/Garrison | Garrison Relay disabled 4774 | -8/Garrison | Discovered new exit (range 15) 4798 | -8/Garrison | Expanded RIF knowledge: Hotswap 4808 | -8/Garrison | Entered Materials 4890 | -8/Materials | Repaired Titanium Leg 5337 | -8/Materials | Repaired Imp. Datajack 5363 | -8/Materials | Met 7R-MNS 5696 | -8/Materials | Identified exit to Garrison 5697 | -8/Materials | Build established: Scavenger-Mutant 5859 | -8/Materials | Learned location of Recycling (-7) 5956 | -8/Materials | Learned 4 Factory zone layouts 5987 | -8/Materials | Learned location of Lower Caves (-7) 6009 | -8/Materials | Learned location of 2 exits from Factory 6019 | -8/Materials | Learned location of 1 exit from Extension 6020 | -8/Materials | Learned 2 Lower Caves zone layouts 6028 | -8/Materials | Learned Storage stockpile data 6048 | -8/Materials | Learned 2 Lower Caves zone layouts 6079 | -8/Materials | Learned location of 1 exit from Extension 6083 | -8/Materials | Entered Garrison 6083 | -8/Garrison | Accompanied by 1 ally 6114 | -8/Garrison | Garrison Relay disabled 6222 | -8/Garrison | Phase Generator disabled 6399 | -8/Garrison | Triggered checkpoint 6433 | -8/Garrison | Core integrity fell below 20% 6434 | -8/Garrison | Garrison Relay disabled 6447 | -8/Garrison | Lost 4 allies 6459 | -8/Garrison | Build established: Bothacker-Mutant 6490 | -8/Garrison | Lost 3 parts (2n1u) 6715 | -8/Garrison | Triggered checkpoint 6754 | -8/Garrison | Destroyed by P-60 Hacker with Shock Rifle Last Messages --------------- >>formatsys_high Rerouting network defenses. Erasing system data. Installing primary routines, ETC: 6. 06713_ V NSA<6CRHB1Y57426I5ZQUPIK:KZHN 06715_ Reactivated Trooper 3b. 06716_ Trooper 3b destroyed. 06717_ Jacked G-47 Trooper... >>formatsys_high Rerouting network defenses. Erasing system data. Installing primary routines, ETC: 6. 06718_ Reactivated Trooper 3c. 06720_ Discarded Relay Coupler [Grunt]. 06747_ System corrupted: Matter fused (-5). 06749_ Slug penetrates P-60 Hacker. 06751_ Machine disabled. 06753_ P-60 Hacker suffers critical hit (Destroy). 06753_ Destroyed Gravmag System. Map ----- +----------------------------------------------------+ | ?????????????????????????????????????????????????? | | ?????????????????????????????????????????????????? | | ?????????????????????????????????????????????????? | | ?????????????????????????????????????????????????? | | ?????????????????????????????????????????????????? | | ?????????????????????????????????????????????????? | | ?????????????????????????????????????????????????? | | ?????????????????????????????????????????????????? | | ?????????????????????????????????????????????????? | | ?????????????????????????????????????????????????? | | ?????????????????????????????????????????????????? | | ?????????????????????????????????????????????????? | | ?????????????????????????????????????????????????? | | ?????????????????????????????????????????????????? | | ?????????????????????????????????????????????????? | | ?????????????????????????????????????????????????? | | ?????????????????????????????????????????????????? | | ???# ????????????????????????????????????????????? | | ??## ## ??????????????????????????????????????? | | ? ????????????????????????????????????? | | ? !#######???????????????????????????? | | ? =%[ #???????????????????????????? | | ? ##### #????????????#########??????? | | ???# ## ??????# #????????????# !/! #??????? | | ?????????# ####### #######??????#=!#=# !#??????? | | ?????? ^^ p @"#??????##|# #=##??????? | | ?????? ^^p## T"#??????#![+!+!!#??????? | | ?????? ### ### p######??????#!!# # !#??????? | | ???????????????#???# #?????##########[#######???? | | ????????????#Y## ### #?????# |! [#?? ###?? | | ?????????# #?????# ########=#?? # ##? | | ????????????### #### #????##+##?????#[### ## | | ???????????????????# #????#! !#?????#! # | | ???????????????????# #????#! !#?????# # | | ???????????????????# #????#! !#?????# | | ?????????# ### #### ####### ######## # | | ?????? ! ## | | ?????????# =% ## ### | | ??????????########## =########### ## #?? | | ???????????????????# ####??????# ## #?? | | ?????????????????### # "#??????# ## #?? | | ?????????????????# !!#??????# ## #####?? | | ?????????????????# == !"#??????# ####### #?????? | | ?????????????????# [ ! "#??????# ###???# #?????? | | ?????????????????# # # "#??????# ##### #?????? | | ?????????????????#*# ####??????# " #?????? | | ???????????####??#[# ########??# #####"#?????? | | ???????????#!!#??# # #??######???# #?????? | | ???????????#!!#### # ##### #??????????## ##????? | | ???????????# = =#?????????????????# ####?? | +----------------------------------------------------+ Best States ------------- Heat Dissipation 45 Energy Generation 16 Energy Capacity 290 Matter Stores 300 Matter Capacity 300 Sight Range 16 Terrain Scan Density 10 Armor Coverage 300 Resistance: TH 10 Resistance: EM 15 Evasion (%) 55 Recoil Reduction 4 Particle Charging 15 Offensive Hacking 20 Relay Coupler Types 2 Relay Coupler Value 41 Item Schematics ----------------- None Robot Schematics ------------------ None Fabricated ------------ Nothing Repaired ---------- Lgt. Treads | 11% | -8/Materials Titanium Leg | 3% | -8/Materials Imp. Datajack | 30% | -8/Materials Studied --------- Aluminum Leg | -8/Materials | Hacked Titanium Leg | -8/Materials | Hacked Carbon-fiber Leg | -8/Materials | Hacked Alien Tech Used ----------------- None Achievements -------------- Oppo Buddy Challenges ------------ None Game ------ Seed CombatShiftKinecellerator Manual? 0 Play Time 01:05:58 Cumulative 168.5 hours Start 2026.09.14 @ 22:42:22 End 2026.09.15 @ 00:38:24 Sessions 3 Manual Loads 0 Difficulty Rogue Special Mode None Game No. 126 Rogue 126 Adventurer 0 Explorer 0 Win Type - Total 4 Types 3/0/1/0/0/0/0/0/0/0 Lore% 60 Gallery% 49 Achievement% 39 Wizard Run 0 Options --------- Layout 2 ASCII 0 Keyboard 1 Movement Numpad Keybinds 0 Fullscreen 2 Font 32/SmallcapsGlow Map View 50x44 Zoom Use 0% Tactical HUD 1 Map Filters NONE Filters NONE Steam 1 RUN: 0f09cca1-39d8-4112-a9fb-44b99fb7bb5e